bitfinex/quotes_ETHUSD_20230113
["timestamp","ask_amount","ask_price","bid_price","bid_amount"]
[1673585489091,5.51606243,1411.4,1411.1,11.27149582]
[1673585489252,3.7584502,1411.4,1411.1,11.27149582]
[1673585489463,3.6924502,1411.4,1411.1,11.27149582]
[1673585489714,5.45006248,1411.4,1411.2,1.06159332]
[1673585490044,11.12183456,1411.4,1411.1,18.42389582]
[1673585490195,3.7584502,1411.4,1411.1,18.35789582]
[1673585490405,3.6924502,1411.4,1411.2,1.06159332]
[1673585490650,5.45006539,1411.4,1411.2,1.06159332]
[1673585490861,5.51606539,1411.4,1411.2,1.06159332]
[1673585491082,3.7584502,1411.4,1411.2,1.06159332]
[1673585491278,3.6924502,1411.4,1411.2,1.06159332]
[1673585491480,5.45004717,1411.4,1411.2,1.06159332]
[1673585491697,5.51604717,1411.4,1411.2,1.06159332]
[1673585491883,3.7584502,1411.4,1411.2,1.06159332]
[1673585492093,3.6924502,1411.4,1411.2,1.06159332]
[1673585492328,5.45004694,1411.4,1411.2,1.06159332]
[1673585492657,5.51604694,1411.4,1411.2,1.06159332]
[1673585492865,3.7584502,1411.4,1411.2,1.06159332]
[1673585493050,3.6924502,1411.4,1411.2,1.06159332]
[1673585493239,5.45004618,1411.4,1411.2,1.06159332]
[1673585493455,5.51604618,1411.4,1411.2,1.06159332]
[1673585493681,3.7584502,1411.4,1411.2,1.06159332]
[1673585494014,3.6924502,1411.4,1411.2,1.06159332]
[1673585494175,5.4500461,1411.4,1411.2,1.06159332]
[1673585494385,5.5160461,1411.4,1411.2,1.06159332]
[1673585494595,3.7584502,1411.4,1411.2,1.06159332]
[1673585494808,3.6924502,1411.4,1411.2,1.06159332]
[1673585495049,1.05604391,1411.4,1411.2,1.06159332]
[1673585495269,2.81361093,1411.4,1411.2,1.06159332]
[1673585496538,8.15573785,1411.4,1411.2,1.06159332]
[1673585496710,6.46417083,1411.4,1411.2,1.06159332]
[1673585497471,1.12204391,1411.4,1411.2,1.06159332]
[1673585497789,1.05604391,1411.4,1411.2,8.14767332]
[1673585498002,1.0814703,1411.3,1411.2,16.74483332]
[1673585498161,1.0814703,1411.3,1411.2,25.42296299]
[1673585498373,1.0814703,1411.3,1411.2,27.36136967]
[1673585499011,1.05604391,1411.5,1411.2,27.36136967]
[1673585499210,1.05604391,1411.5,1411.3,8.14734167]
[1673585499509,2.81352071,1411.5,1411.3,8.14734167]
[1673585500986,2.81352071,1411.5,1411.3,7.08542]
[1673585501152,2.81352071,1411.5,1411.3,8.14734167]
[1673585501363,2.81352071,1411.5,1411.3,7.08542]
[1673585501618,2.81352071,1411.5,1411.3,8.14734167]
[1673585501775,2.81352071,1411.5,1411.3,15.23300167]
[1673585502239,1.05604391,1411.5,1411.3,15.23300167]
[1673585502828,2.81347188,1411.5,1411.3,15.23300167]
[1673585506775,5.34414511,1411.6,1411.3,15.23300167]
[1673585508728,1.05604391,1411.5,1411.3,14.17108]
[1673585508939,2.8135276,1411.5,1411.2,20.93427172]
[1673585509295,11.48395126,1411.5,1411.2,12.27134172]
[1673585509451,12.33370709,1411.5,1411.2,12.27134172]
[1673585509782,19.41837709,1411.5,1411.2,12.27134172]
[1673585519222,21.41837709,1411.5,1411.2,12.27134172]
[1673585519600,19.41837709,1411.5,1411.2,12.27134172]
[1673585520316,1.77449441,1411.4,1411.2,12.27134172]
[1673585520526,26.50333709,1411.5,1411.2,12.27134172]
[1673585522058,26.50333709,1411.5,1411.2,12.27334172]
[1673585522059,26.50133709,1411.5,1411.2,12.27334172]
[1673585522269,2.8136354,1411.4,1411.2,11.20942005]
[1673585522530,4.8136354,1411.4,1411.2,11.20942005]
[1673585522699,1.05604391,1411.4,1411.2,3.02252005]
[1673585522917,2.81364854,1411.4,1411.2,3.02252005]
[1673585524169,2.81364854,1411.4,1411.2,4.08444172]
[1673585525412,2.81364854,1411.4,1411.2,4.08644172]
[1673585525626,2.81364854,1411.4,1411.2,4.08444172]
[1673585527877,29.13968463,1411.5,1411.2,4.08444172]
[1673585528093,2.86707692,1411.4,1411.2,4.08444172]
[1673585528316,26.50333709,1411.5,1411.2,4.08444172]
[1673585530145,26.50333709,1411.5,1411.2,5.67641139]
[1673585530591,26.50333709,1411.5,1411.2,4.08444172]
[1673585531620,26.50333709,1411.5,1411.2,5.67641139]
[1673585532352,24.91758343,1411.5,1411.2,5.67641139]
[1673585532709,26.50333709,1411.5,1411.2,5.67641139]
[1673585533334,24.91758343,1411.5,1411.2,5.67641139]
[1673585533963,26.50333709,1411.5,1411.2,5.67641139]
[1673585534158,26.50133709,1411.5,1411.2,5.67841139]
[1673585534367,26.50333709,1411.5,1411.2,5.67641139]
[1673585535189,26.50333709,1411.5,1411.2,5.72641139]
[1673585536292,24.91758343,1411.5,1411.2,5.72641139]
[1673585536497,26.50333709,1411.5,1411.2,5.72641139]
[1673585537304,26.50333709,1411.5,1411.2,5.67641139]
[1673585539460,24.91758343,1411.5,1411.2,5.67641139]
[1673585542205,26.50333709,1411.5,1411.2,5.67641139]
[1673585542673,24.91758343,1411.5,1411.3,1.06192167]
[1673585542885,17.83262343,1411.5,1411.3,1.06192167]
[1673585546379,15.29138391,1411.5,1411.3,1.06192167]
[1673585548107,8.20671391,1411.5,1411.3,1.06192167]
[1673585558427,9.79246757,1411.5,1411.2,14.33653139]
[1673585558741,9.79246757,1411.5,1411.2,14.27053139]
[1673585563957,9.79246757,1411.5,1411.3,1.06192167]
[1673585564175,8.20671391,1411.5,1411.3,1.06192167]
[1673585568629,9.79246757,1411.5,1411.3,1.06192167]
[1673585569013,2.70779757,1411.5,1411.3,1.06192167]
[1673585569243,1.05604391,1411.5,1411.3,1.06192167]
[1673585569574,2.81350807,1411.5,1411.3,1.06192167]
[1673585571554,9.89816807,1411.5,1411.3,1.06192167]
[1673585571745,8.20670391,1411.5,1411.3,1.06192167]
[1673585574361,11.07792875,1411.5,1411.3,1.06192167]
[1673585574687,12.66368241,1411.5,1411.3,1.06192167]
[1673585576585,11.07792875,1411.5,1411.3,1.06192167]
[1673585576797,8.20670391,1411.5,1411.3,1.06192167]
[1673585577312,9.79245757,1411.5,1411.3,1.06192167]
[1673585584788,9.79245757,1411.5,1411.3,1.01192167]
[1673585587638,8.20670391,1411.5,1411.3,1.01192167]
[1673585593809,9.79245757,1411.5,1411.3,1.01192167]
[1673585594282,12.66368241,1411.5,1411.3,1.01192167]
[1673585595740,11.07792875,1411.5,1411.3,1.01192167]
[1673585595945,12.66368241,1411.5,1411.3,1.01192167]
[1673585597208,1.05604391,1411.4,1411.2,21.37240139]
[1673585597557,1.05604391,1411.4,1411.2,21.30640139]
[1673585597862,2.8135625,1411.4,1411.2,21.30640139]
[1673585598245,1.05604391,1411.4,1411.2,21.30640139]
[1673585598696,2.81355897,1411.4,1411.2,21.30640139]
[1673585599225,1.05604391,1411.4,1411.3,1.01192167]
[1673585605701,1.0536545,1411.4,1411.3,1.01192167]
[1673585611056,8.73641366,1411.5,1411.3,1.01192167]
[1673585612352,11.7660277,1411.5,1411.3,1.01192167]
[1673585615701,12.82479053,1411.5,1411.3,1.01192167]
[1673585617932,11.23903687,1411.5,1411.3,2.60389134]
[1673585618254,8.20942283,1411.5,1411.3,1.01192167]
[1673585618778,9.79517649,1411.5,1411.3,1.01192167]
[1673585622833,1.12476283,1411.5,1411.3,18.28586134]
[1673585623043,0.066,1411.6,1411.4,8.82889139]
[1673585623255,21.25444874,1411.7,1411.5,10.52681691]
[1673585623500,21.25444874,1411.7,1411.6,1.511]
[1673585623501,20.19568591,1411.7,1411.6,1.511]
[1673585623985,0.10468591,1411.7,1411.6,1.511]
[1673585624360,0.03868591,1411.7,1411.5,10.59881691]
[1673585624512,0.03868591,1411.7,1411.5,17.61747691]
[1673585626349,0.03868591,1411.7,1411.5,16.55520914]
[1673585628360,0.03474233,1411.7,1411.6,1.65552091]
[1673585628511,0.03474233,1411.7,1411.5,15.73832]
[1673585628725,0.03474233,1411.7,1411.6,7.08415]
[1673585631755,0.03474233,1411.7,1411.6,7.08199137]
[1673585632406,0.03474233,1411.7,1411.6,7.08415]
[1673585635823,0.03474233,1411.7,1411.6,17.1863]
[1673585636035,0.03474233,1411.7,1411.6,19.1863]
[1673585636361,0.03474233,1411.7,1411.6,22.1863]
[1673585640284,0.03474233,1411.7,1411.6,20.1863]
[1673585644133,1.79974233,1411.7,1411.5,0.066]
[1673585644436,8.88339233,1411.7,1411.5,3.0]
[1673585644708,9.94356485,1411.7,1411.5,3.0]
[1673585648696,9.06656485,1411.7,1411.5,3.0]
[1673585648883,0.10074233,1411.7,1411.5,12.08464]
[1673585649227,0.94513128,1411.6,1411.5,10.08464]
[1673585649369,0.94513128,1411.6,1411.5,17.1693]
[1673585649578,0.94513128,1411.6,1411.5,10.08464]
[1673585650995,0.94513128,1411.6,1411.5,24.25396]
[1673585652990,0.94182465,1411.6,1411.5,25.31622777]
[1673585653394,0.94182465,1411.6,1411.5,26.82422777]
[1673585655663,0.94182465,1411.6,1411.5,25.76196]
[1673585656198,0.94182465,1411.6,1411.5,18.6773]
[1673585657287,0.94182465,1411.6,1411.5,19.73956777]
[1673585657495,0.94182465,1411.6,1411.5,18.6773]
[1673585658513,0.94182465,1411.6,1411.5,11.59264]
[1673585659051,0.94182465,1411.6,1411.5,12.65490777]
[1673585659400,0.94182465,1411.6,1411.5,11.59264]
[1673585659590,0.94182465,1411.6,1411.5,10.08464]
[1673585661192,0.94182465,1411.6,1411.5,11.14690777]
[1673585669476,0.94182465,1411.6,1411.5,4.06226777]
[1673585670433,0.94182465,1411.6,1411.5,11.14692777]
[1673585671689,0.94182465,1411.6,1411.5,12.73889744]
[1673585674169,0.94182465,1411.6,1411.5,28.40721744]
[1673585675050,0.94182465,1411.6,1411.5,27.34494967]
[1673585675231,0.94182465,1411.6,1411.5,27.34694967]
[1673585675430,0.94182465,1411.6,1411.5,27.34494967]
[1673585675640,0.93785224,1411.6,1411.5,27.34494967]
[1673585686378,0.93785224,1411.6,1411.5,28.40647596]
[1673585687111,0.93785224,1411.6,1411.5,25.84594967]
[1673585691965,0.93785224,1411.6,1411.5,25.89594967]
[1673585692355,0.93785224,1411.6,1411.5,26.95759881]
[1673585694054,0.93785224,1411.6,1411.5,26.90759881]
[1673585696992,0.9357445,1411.6,1411.5,26.90759881]
[1673585700348,0.8857445,1411.6,1411.5,26.90759881]
[1673585703347,0.8857445,1411.6,1411.5,25.84594967]
[1673585709284,0.8857445,1411.6,1411.5,27.95641548]
[1673585710864,0.8857445,1411.6,1411.5,25.84594967]
[1673585711968,0.8857445,1411.6,1411.5,25.84291878]
[1673585714909,0.8857445,1411.6,1411.5,27.95338459]
[1673585715769,0.8857445,1411.6,1411.5,25.84291878]
[1673585722702,0.8857445,1411.6,1411.5,27.95338459]
[1673585723335,0.8857445,1411.6,1411.5,25.84291878]
[1673585723547,0.8857445,1411.6,1411.5,27.95338459]
[1673585724590,0.8857445,1411.6,1411.5,25.84291878]
[1673585725569,0.8857445,1411.6,1411.5,27.95338459]
[1673585727170,0.8857445,1411.6,1411.5,25.84291878]
[1673585727542,0.8857445,1411.6,1411.5,18.75825878]
[1673585734995,0.88302023,1411.6,1411.5,20.75825878]
[1673585735356,0.88302023,1411.6,1411.5,18.75825878]
[1673585735532,0.88302023,1411.6,1411.5,20.86872459]
[1673585748600,0.88302023,1411.6,1411.5,27.95338459]
[1673585753564,0.88302023,1411.6,1411.5,26.36141492]
[1673585754389,0.88302023,1411.6,1411.5,27.95456604]
[1673585754934,0.88302023,1411.6,1411.5,26.36141492]
[1673585757028,0.87996686,1411.6,1411.5,26.36141492]
[1673585758721,0.87996686,1411.6,1411.5,26.31141492]
[1673585759610,0.87996686,1411.6,1411.5,27.81141492]
[1673585765081,0.87996686,1411.6,1411.5,30.45316835]
[1673585771432,0.87996686,1411.6,1411.5,30.44854947]
[1673585777419,0.87996686,1411.6,1411.5,30.47110864]
[1673585781626,0.87996686,1411.6,1411.5,38.28930174]
[1673585781846,0.87996686,1411.6,1411.5,39.71518661]
[1673585782151,0.87996686,1411.6,1411.5,40.27189451]
[1673585782776,0.87996686,1411.6,1411.5,39.71518661]
[1673585789726,0.87996686,1411.6,1411.5,38.20418661]
[1673585790248,0.87996686,1411.6,1411.5,35.0340825]
[1673585793554,0.87996686,1411.6,1411.5,38.20418661]
[1673585793818,0.87996686,1411.6,1411.5,47.09656792]
[1673585794197,0.87996686,1411.6,1411.5,43.92646381]
[1673585795865,0.8760941,1411.6,1411.5,43.92646381]
[1673585797688,0.03474233,1411.7,1411.6,2.0]
[1673585798018,0.03474233,1411.7,1411.6,38.8450413]
[1673585798181,0.03474233,1411.7,1411.6,41.8450413]
[1673585798386,0.03868591,1411.9,1411.8,21.24945]
[1673585798629,0.03868591,1411.9,1411.8,29.96225861]
[1673585799022,0.03868591,1411.9,1411.8,25.30907918]
[1673585804323,0.03868591,1411.9,1411.8,25.31107918]
[1673585804539,0.03868591,1411.9,1411.8,25.30907918]
[1673585808026,0.03868591,1411.9,1411.8,25.33056222]
[1673585810181,0.03868591,1411.9,1411.8,26.92000599]
[1673585813676,0.03868591,1411.9,1411.8,30.52633871]
[1673585813906,0.03868591,1411.9,1411.8,41.37994356]
[1673585814081,0.04431007,1412.0,1411.8,39.78159177]
[1673585814300,0.04431007,1412.0,1411.9,15.45973237]
[1673585814619,0.04431007,1412.0,1411.9,36.70768237]
[1673585816285,0.04431007,1412.0,1411.9,38.82615802]
[1673585816909,0.04431007,1412.0,1411.9,41.83615802]
[1673585818267,0.04431007,1412.0,1411.9,39.18618492]
[1673585818525,0.04431007,1412.0,1411.9,41.83615802]
[1673585818914,0.04431007,1412.0,1411.9,39.71768237]
[1673585819585,0.04431007,1412.0,1411.9,41.83598747]
[1673585820165,0.04431007,1412.0,1411.9,39.71768237]
[1673585820952,0.04431007,1412.0,1411.9,41.83652235]
[1673585821322,0.04431007,1412.0,1411.9,38.33920473]
[1673585823427,0.04431007,1412.0,1411.9,35.68923163]
[1673585831926,0.04431007,1412.0,1411.9,37.20023163]
[1673585834244,0.04431007,1412.0,1411.9,39.85020473]
[1673585838616,0.04066515,1412.0,1411.9,39.85020473]
[1673585846342,0.04066515,1412.0,1411.9,37.73131228]
[1673585846768,0.04066515,1412.0,1411.9,36.22031228]
[1673585851965,0.04066515,1412.0,1411.9,32.01525582]
[1673585852279,0.04066515,1412.0,1411.9,32.53538683]
[1673585852493,0.04066515,1412.0,1411.9,29.36528272]
[1673585853444,1.13666515,1412.0,1411.9,32.01947887]
[1673585853654,1.13666515,1412.0,1411.9,30.50847887]
[1673585854214,1.13666515,1412.0,1411.9,29.02506878]
[1673585854907,0.04066515,1412.0,1411.9,26.90214615]
[1673585855490,0.04066515,1412.0,1411.9,29.02501879]
[1673585857425,0.04066515,1412.0,1411.9,26.37082264]
[1673585857991,1.13666515,1412.0,1411.9,26.37082264]
[1673585858176,0.04066515,1412.0,1411.9,26.37082264]
[1673585859851,0.04066515,1412.0,1411.9,27.96213006]
[1673585860340,0.04066515,1412.0,1411.9,26.37082264]
[1673585861424,0.03753484,1412.0,1411.9,26.37082264]
[1673585861958,0.03753484,1412.0,1411.9,27.9619867]
[1673585862692,5.22853484,1412.0,1411.9,11.14348085]
[1673585862911,6.24228427,1412.0,1411.9,1.06083085]
[1673585863223,6.24228427,1412.0,1411.8,1.65716406]
[1673585863224,10.44409238,1412.0,1411.8,1.06083085]
[1673585863442,1.507,1411.9,1411.8,1.06083085]
[1673585863589,9.22265135,1411.9,1411.7,2.65599491]
[1673585863804,3.015,1411.8,1411.7,1.06083085]
[1673585864057,3.94356514,1411.8,1411.7,1.06083085]
[1673585864589,3.94356514,1411.8,1411.6,9.80174491]
[1673585864800,1.499,1411.7,1411.6,9.73574491]
[1673585865589,1.499,1411.7,1411.6,12.73574491]
[1673585865798,1.89945651,1411.7,1411.6,11.14458085]
[1673585866370,1.89945651,1411.7,1411.6,4.06083085]
[1673585867002,1.89945651,1411.7,1411.6,1.06083085]
[1673585867171,1.89945651,1411.7,1411.5,9.80243491]
[1673585867379,1.89945651,1411.7,1411.5,9.73643491]
[1673585867594,0.18994565,1411.6,1411.5,9.73643491]
[1673585867948,0.18994565,1411.6,1411.5,11.14527085]
[1673585868115,0.18994565,1411.6,1411.5,19.82109491]
[1673585868783,0.18994565,1411.6,1411.5,26.90575491]
[1673585870024,0.18994565,1411.6,1411.5,25.31459085]
[1673585872453,1.69694565,1411.6,1411.5,3.0]
[1673585873216,1.69694565,1411.6,1411.5,10.08466]
[1673585873580,1.69694565,1411.6,1411.5,18.23015085]
[1673585874125,1.69694565,1411.6,1411.5,17.16932]
[1673585875784,0.18994565,1411.6,1411.5,18.23015085]
[1673585875993,0.40045651,1411.7,1411.5,25.31481085]
[1673585876839,0.40045651,1411.7,1411.5,26.90597491]
[1673585877049,21.96046514,1411.8,1411.5,25.31481085]
[1673585882873,21.96046514,1411.8,1411.5,26.90597491]
[1673585883037,11.0861,1411.8,1411.6,8.26425701]
[1673585883244,11.0861,1411.8,1411.7,21.25095]
[1673585883500,0.066,1411.8,1411.7,24.25095]
[1673585883670,8.54293484,1412.0,1411.7,24.25095]
[1673585883879,10.69312933,1412.0,1411.7,24.25095]
[1673585886533,10.69312933,1412.0,1411.7,25.31178085]
[1673585887608,8.54084497,1412.0,1411.7,25.31178085]
[1673585889441,8.54084497,1412.0,1411.7,24.25095]
[1673585889987,8.54084497,1412.0,1411.7,25.31178085]
[1673585890311,8.54084497,1412.0,1411.7,24.25095]
[1673585891162,8.54084497,1412.0,1411.7,25.31178085]
[1673585891491,8.54084497,1412.0,1411.7,24.25095]
[1673585891982,8.54084497,1412.0,1411.7,25.31178085]
[1673585892503,10.69083047,1412.0,1411.7,25.31178085]
[1673585893441,10.69083047,1412.0,1411.7,24.25095]
[1673585893756,10.69083047,1412.0,1411.7,25.31178085]
[1673585895986,0.10144497,1412.0,1411.8,1.06083085]
[1673585896182,0.03544497,1412.0,1411.9,21.24795]
[1673585902100,0.03544497,1412.0,1411.9,31.55271383]
[1673585902323,0.03544497,1412.0,1411.9,27.35011406]
[1673585904303,1.10269948,1412.0,1411.9,27.35011406]
[1673585905204,1.10269948,1412.0,1411.9,29.4729867]
[1673585905886,1.10269948,1412.0,1411.9,27.35011406]
[1673585906119,1.10269948,1412.0,1411.9,29.4729867]
[1673585906292,1.10269948,1412.0,1411.9,27.35011406]
[1673585907205,1.10269948,1412.0,1411.9,28.40933892]
[1673585907369,1.10269948,1412.0,1411.9,28.40934931]
[1673585907538,1.10269948,1412.0,1411.9,27.35011406]
[1673585907893,1.10269948,1412.0,1411.9,28.40935757]
[1673585909150,1.10269948,1412.0,1411.9,25.30719351]
[1673585909325,1.10269948,1412.0,1411.9,18.22454351]
[1673585910168,1.0996998,1412.0,1411.9,18.22454351]
[1673585910376,1.0996998,1412.0,1411.9,17.1653]
[1673585910622,1.0996998,1412.0,1411.9,24.24795]
[1673585912001,1.0996998,1412.0,1411.9,17.1653]
[1673585912621,1.21410079,1412.0,1411.9,17.16234937]
[1673585913848,0.21410079,1412.0,1411.9,17.16234937]
[1673585914085,0.0996998,1412.0,1411.9,17.16234937]
[1673585914300,1.1956998,1412.0,1411.9,17.16234937]
[1673585915391,0.0996998,1412.0,1411.9,17.16234937]
[1673585917192,1.1836998,1412.0,1411.9,3.0]
[1673585917374,1.45640079,1412.0,1411.8,22.37374351]
[1673585917588,1.45640079,1412.0,1411.8,22.30774351]
[1673585924277,1.45640079,1412.0,1411.8,23.89890757]
[1673585925517,1.45640079,1412.0,1411.8,22.30774351]
[1673585926357,1.45640079,1412.0,1411.8,23.89890757]
[1673585927552,0.37240079,1412.0,1411.8,23.89890757]
[1673585929098,0.37240079,1412.0,1411.8,22.30774351]
[1673585932457,0.37240079,1412.0,1411.8,8.14202351]
[1673585933295,0.37240079,1412.0,1411.8,8.14001183]
[1673585933957,1.511,1411.9,1411.7,0.066]
[1673585934183,2.3311,1411.8,1411.6,4.59116406]
[1673585934713,2.3311,1411.8,1411.6,11.67526406]
[1673585935714,0.1511,1411.8,1411.6,11.67526406]
[1673585936157,0.1511,1411.8,1411.6,20.8822867]
[1673585936366,8.65976,1411.9,1411.6,20.8822867]
[1673585939862,8.65976,1411.9,1411.6,18.75941406]
[1673585942184,1.577,1411.9,1411.6,18.75941406]
[1673585942344,1.511,1411.9,1411.6,20.8822867]
[1673585942563,5.63328635,1411.9,1411.6,20.8822867]
[1673585942778,5.69928635,1411.9,1411.6,20.8822867]
[1673585943442,5.69928635,1411.9,1411.7,1.06003379]
[1673585944050,5.69928635,1411.9,1411.7,8.14365379]
[1673585946412,5.69928635,1411.9,1411.7,9.73481785]
[1673585948356,5.69928635,1411.9,1411.7,8.14365379]
[1673585948577,2.74992864,1411.8,1411.7,8.14365379]
[1673585949088,2.18,1411.8,1411.7,8.14365379]
[1673585949509,1.096,1411.8,1411.7,8.14365379]
[1673585949924,5.69928635,1411.9,1411.7,8.14365379]
[1673585950349,5.69928635,1411.9,1411.7,1.06003379]
[1673585955918,5.69637704,1411.9,1411.7,1.06003379]
[1673585956139,4.2606377,1411.8,1411.6,5.71719785]
[1673585956338,4.2606377,1411.8,1411.6,5.65119785]
[1673585956544,2.0,1411.7,1411.6,5.65119785]
[1673585956806,2.0,1411.7,1411.6,4.59116406]
[1673585957194,5.2306377,1411.8,1411.6,4.59116406]
[1673585957550,1.61906377,1411.7,1411.6,4.59116406]
[1673585958067,1.096,1411.7,1411.6,5.65207491]
[1673585958452,1.096,1411.7,1411.6,4.59116406]
[1673585959384,10.8028877,1411.8,1411.6,4.59116406]
[1673585959625,10.8028877,1411.8,1411.6,5.65205776]
[1673585959815,10.8028877,1411.8,1411.6,2.65205776]
[1673585960040,1.08028877,1411.7,1411.6,2.65205776]
[1673585960446,1.08028877,1411.7,1411.6,1.0608937]
[1673585960791,17.24758877,1411.7,1411.5,2.65205776]
[1673585960998,17.31358877,1411.7,1411.5,1.0608937]
[1673585961328,1.73135888,1411.6,1411.5,1.0608937]
[1673585961642,8.81550888,1411.6,1411.5,1.0608937]
[1673585961951,8.88150888,1411.6,1411.5,1.0608937]
[1673585963651,2.0,1411.5,1411.4,2.65151683]
[1673585963850,8.88150888,1411.6,1411.4,2.65151683]
[1673585964157,0.88815089,1411.5,1411.4,2.65151683]
[1673585964991,2.88815089,1411.5,1411.4,2.65151683]
[1673585965390,0.88815089,1411.5,1411.4,2.65151683]
[1673585965617,2.88815089,1411.5,1411.4,2.65151683]
[1673585965826,0.88815089,1411.5,1411.4,1.06035277]
[1673585966215,7.97281089,1411.5,1411.4,1.06035277]
[1673585966434,8.03881089,1411.5,1411.4,1.06035277]
[1673585967583,8.03881089,1411.5,1411.3,2.65151683]
[1673585967584,18.72980361,1411.5,1411.3,2.65151683]
[1673585967800,0.80388109,1411.4,1411.3,2.65151683]
[1673585969474,0.80388109,1411.4,1411.3,1.06035277]
[1673585970476,2.80388109,1411.4,1411.3,1.06035277]
[1673585970630,2.80388109,1411.4,1411.2,6.7800367]
[1673585970631,0.80388109,1411.4,1411.2,5.71751683]
[1673585970840,0.80388109,1411.4,1411.2,5.65151683]
[1673585970841,7.88904109,1411.4,1411.2,5.65151683]
[1673585971065,7.95504109,1411.4,1411.2,5.65151683]
[1673585971260,0.79550411,1411.3,1411.2,5.65151683]
[1673585971501,7.95504109,1411.4,1411.2,5.65151683]
[1673585973624,7.95504109,1411.4,1411.2,4.06035277]
[1673585974360,9.95504109,1411.4,1411.2,4.06035277]
[1673585974532,9.95504109,1411.4,1411.2,1.06035277]
[1673585974723,6.60183683,1411.3,1411.2,1.06035277]
[1673585974934,22.35015683,1411.3,1411.1,2.75884691]
[1673585975143,22.35015683,1411.3,1411.1,1.16768285]
[1673585975398,22.35015683,1411.3,1411.1,4.16768285]
[1673585975610,2.23501568,1411.2,1411.1,5.75884691]
[1673585976414,2.23501568,1411.2,1411.1,4.16768285]
[1673585977689,2.23501568,1411.2,1411.1,4.16968285]
[1673585977880,2.23501568,1411.2,1411.1,5.75884691]
[1673585978090,27.43622683,1411.3,1411.1,5.75884691]
[1673585978935,27.43622683,1411.3,1411.1,4.16768285]
[1673585979384,27.43313476,1411.3,1411.1,4.16768285]
[1673585979557,25.92213476,1411.3,1411.1,4.16768285]
[1673585980017,25.92213476,1411.3,1411.1,1.16768285]
[1673585980244,2.59221348,1411.2,1411.1,1.16768285]
[1673585982400,2.59221348,1411.2,1411.1,1.1656304]
[1673585982820,13.2847062,1411.2,1411.1,1.1656304]
[1673585983026,13.3507062,1411.2,1411.1,1.1656304]
[1673585984082,13.5807062,1411.2,1411.1,1.1656304]
[1673585987444,13.5807062,1411.2,1411.1,0.10527763]
[1673585990590,20.6668662,1411.2,1411.1,0.10527763]
[1673585990805,13.5307062,1411.2,1411.1,0.10527763]
[1673585991850,13.3007062,1411.2,1411.1,0.10527763]
[1673585992321,22.3868662,1411.2,1411.1,0.10527763]
[1673585992694,15.3007062,1411.2,1411.1,0.10527763]
[1673585993042,13.3007062,1411.2,1411.1,0.10527763]
[1673585993214,20.3868662,1411.2,1411.1,0.10527763]
[1673585993636,20.6168662,1411.2,1411.1,0.10527763]
[1673585994281,22.6168662,1411.2,1411.1,0.10527763]
[1673585994497,2.60821348,1411.2,1411.1,0.10527763]
[1673585994706,2.55641204,1411.3,1411.1,0.10527763]
[1673585995022,6.09674476,1411.3,1411.1,0.10527763]
[1673585995238,6.16274476,1411.3,1411.1,0.10527763]
[1673585995445,6.16274476,1411.3,1411.1,1.1656304]
[1673585995792,6.62833272,1411.2,1411.0,1.05911958]
[1673585995952,25.52914599,1411.1,1410.8,3.94407055]
[1673585996316,3.60633272,1410.9,1410.8,0.1762779]
[1673585996530,3.60633272,1410.9,1410.6,0.10602789]
[1673585996531,0.698116,1410.7,1410.6,0.10602789]
[1673585996687,7.96306389,1410.7,1410.6,0.10602789]
[1673585996895,15.15956551,1410.7,1410.6,0.10602789]
[1673585997141,4.23456279,1410.7,1410.6,0.10602789]
[1673585997469,0.87439389,1410.7,1410.6,0.10602789]
[1673585997631,0.87439389,1410.7,1410.6,1.16529125]
[1673585997841,0.87439389,1410.7,1410.6,8.25447125]
[1673585998062,0.87439389,1410.7,1410.6,11.25447125]
[1673585998278,0.87439389,1410.7,1410.6,13.27217054]
[1673585998734,0.87439389,1410.7,1410.6,5.12372718]
[1673585999108,0.87439389,1410.7,1410.6,3.10602789]
[1673586000068,0.87439389,1410.7,1410.6,0.10602789]
[1673586000258,0.87439389,1410.7,1410.6,3.10602789]
[1673586000591,0.87439389,1410.7,1410.6,0.10602789]
[1673586000800,0.87439389,1410.7,1410.6,3.10602789]
[1673586001267,0.96183328,1410.7,1410.6,3.08850431]
[1673586001848,0.96183328,1410.7,1410.6,0.08850431]
[1673586003035,0.87439389,1410.7,1410.6,0.08850431]
[1673586006875,23.54133,1410.9,1410.6,0.08850431]
[1673586007082,27.14766272,1410.9,1410.6,0.08850431]
[1673586008283,3.60633272,1410.8,1410.4,1.83287169]
[1673586008448,7.08918,1410.6,1410.4,0.17797665]
[1673586008662,10.69601272,1410.5,1410.4,0.17797665]
[1673586008907,18.08169272,1410.5,1410.4,0.17797665]
[1673586009121,3.90233272,1410.5,1410.4,0.17797665]
[1673586009344,17.00778399,1410.5,1410.4,0.17797665]
[1673586009547,18.58478399,1410.5,1410.4,0.17797665]
[1673586009759,25.67446399,1410.5,1410.4,0.17797665]
[1673586009922,25.57446399,1410.5,1410.4,0.17797665]
[1673586012500,36.78537751,1410.5,1410.4,0.17797665]
[1673586012951,32.66414399,1410.5,1410.4,0.17797665]
[1673586014910,41.22574399,1410.5,1410.4,0.17797665]
[1673586016605,45.34697751,1410.5,1410.4,1e-08]
[1673586016829,41.22574399,1410.5,1410.4,1e-08]
[1673586017545,41.93451321,1410.5,1410.4,1e-08]
[1673586018201,49.02419321,1410.5,1410.4,1e-08]
[1673586019446,56.14742673,1410.5,1410.4,1e-08]
[1673586019654,59.14742673,1410.5,1410.4,1e-08]
[1673586020299,70.83342673,1410.5,1410.4,1e-08]
[1673586020537,70.83342673,1410.5,1410.3,0.16778833]
[1673586020538,54.42954738,1410.5,1410.3,0.16778833]
[1673586020668,28.01958,1410.5,1410.3,0.16778833]
[1673586021307,3.60633272,1410.4,1410.3,0.16778833]
[1673586021728,3.83633272,1410.4,1410.3,0.16778833]
[1673586021956,20.6999,1410.5,1410.3,0.16778833]
[1673586022173,12.1383,1410.5,1410.3,0.35817195]
[1673586022766,0.93613642,1410.4,1410.3,0.35817195]
[1673586023392,0.93613642,1410.4,1410.3,8.95185195]
[1673586023620,0.93613642,1410.4,1410.3,19.04253195]
[1673586024358,0.93613642,1410.4,1410.3,18.73553195]
[1673586024768,0.93613642,1410.4,1410.3,20.74181299]
[1673586026118,0.93613642,1410.4,1410.3,21.94181299]
[1673586027225,0.93613642,1410.4,1410.3,29.03249299]
[1673586028716,0.93613642,1410.4,1410.3,30.09010781]
[1673586030083,0.93613642,1410.4,1410.3,31.67900285]
[1673586030235,0.93613642,1410.4,1410.3,30.09010781]
[1673586031436,0.93613642,1410.4,1410.3,31.67900285]
[1673586033293,0.93613642,1410.4,1410.3,30.62138803]
[1673586033507,0.93613642,1410.4,1410.3,32.74426067]
[1673586034429,0.93613642,1410.4,1410.3,36.35059339]
[1673586035546,0.93613642,1410.4,1410.3,37.4158945]
[1673586036112,0.93613642,1410.4,1410.3,36.49702186]
[1673586036323,0.06,1411.0,1410.5,28.35712]
[1673586036535,0.066,1411.2,1410.9,7.08757]
[1673586036536,11.1541,1411.2,1410.9,7.08757]